[Event "Swiss Championship U14 2022"]
[Site "Biel"]
[Date "2022.07.18"]
[Round "1.7"]
[White "Delangle, Alexander"]
[Black "Breyer, Philippe"]
[Result "0-1"]
[ECO "B50"]
[WhiteElo "1612"]
[BlackElo "1743"]
[Annotator "NA COMBH"]
[PlyCount "108"]
[EventDate "2022.07.18"]
[EventType "swiss"]
[EventCountry "SUI"]
[SourceTitle "playchess.com"]
[Source "ChessBase"]
[SourceQuality "1"]
[TimeControl "5400+30"]

1. e4 {[%emt 0:00:06]} c5 {[%emt 0:00:01]} 2. Nf3 {[%emt 0:00:32]} d6 {[%emt 0:00:02]} 3. c3 {[%emt 0:00:50]} Nf6 {[%emt 0:00:54]} 4. h3 {[%emt 0:01:11]} Nc6 {[%emt 0:00:34]} 5. Bd3 {[%emt 0:02:54]} g6 {[%emt 0:05:25]} 6. Bc2 {[%emt 0:01:25]} e5 {[%emt 0:01:30]} 7. O-O {[%emt 0:04:09]} Bg7 {[%emt 0:00:44]} 8. d4 {[%emt 0:04:44]} cxd4 {[%emt 0:01:34]} 9. cxd4 {[%emt 0:00:45]} exd4 {[%emt 0:03:49]} 10. Nxd4 {[%emt 0:00:55]} O-O {[%emt 0:03:11]} 11. Bg5 {[%emt 0:05:23]} Qb6 {[%emt 0:09:26]} 12. Nb3 {[%emt 0:10:05]} Nd7 {[%emt 0:11:30]} 13. N1d2 {[%emt 0:05:18]} Nde5 {[%emt 0:02:11]} 14. Be3 {[%emt 0:04:19]} Qc7 {[%emt 0:16:23]} 15. a3 {[%emt 0:04:33]} Be6 {[%emt 0:02:36]} 16. Nd4 {[%emt 0:10:38]} Nxd4 {[%emt 0:06:46]} 17. Bxd4 {[%emt 0:00:21]} d5 {[%emt 0:01:13]} 18. f4 {[%emt 0:03:15]} Nc4 {[%emt 0:02:28]} 19. Nxc4 {[%emt 0:02:55]} Bxd4+ {[%emt 0:05:23]} 20. Qxd4 {[%emt 0:00:15]} Qxc4 {[%emt 0:00:03]} 21. Qxc4 {[%emt 0:00:40]} dxc4 {[%emt 0:00:02]} 22. f5 {[%emt 0:00:36]} Bd7 {[%emt 0:00:47]} 23. Rad1 {[%emt 0:01:22]} Bc6 {[%emt 0:03:54]} 24. Rd4 {[%emt 0:01:17]} Rfe8 {[%emt 0:02:29]} 25. Rf4 {[%emt 0:03:00]} b5 {[%emt 0:03:28]} 26. Rd6 {[%emt 0:02:37]} Rac8 {[%emt 0:01:41]} 27. fxg6 {[%emt 0:02:34]} hxg6 {[%emt 0:01:27]} 28. h4 {[%emt 0:02:29]} Red8 {[%emt 0:03:27]} 29. Rff6 {[%emt 0:02:38]} Rxd6 {[%emt 0:01:18]} 30. Rxd6 {[%emt 0:00:08]} Kf8 {[%emt 0:03:40]} 31. Kh2 {[%emt 0:02:23]} Ke7 {[%emt 0:00:46]} 32. e5 {[%emt 0:01:34]} Bb7 {[%emt 0:02:59]} 33. Bxg6 {[%emt 0:04:08]} fxg6 {[%emt 0:00:59]} 34. Rxg6 {[%emt 0:00:08]} Rf8 {[%emt 0:01:23]} 35. h5 {[%emt 0:00:41]} Be4 {[%emt 0:02:11]} 36. Ra6 {[%emt 0:02:17]} Rf2 {[%emt 0:01:15]} 37. Rxa7+ {[%emt 0:00:32]} Ke6 {[%emt 0:00:25]} 38. Rg7 {[%emt 0:00:34]} Rxb2 {[%emt 0:00:26]} 39. h6 {[%emt 0:02:02]} c3 {[%emt 0:00:54]} 40. h7 {[%emt 0:00:47]} Bxh7 {[%emt 0:00:16]} 41. Rxh7 {[%emt 0:00:05]} Kxe5 {[%emt 0:00:22]} 42. Kh3 {[%emt 0:00:58]} c2 {[%emt 0:00:31]} 43. Rc7 {[%emt 0:00:16]} Kd4 {[%emt 0:00:22]} 44. g4 {[%emt 0:00:14]} Rb3+ {[%emt 0:00:13]} 45. Kh4 {[%emt 0:00:17]} Rc3 {[%emt 0:00:12]} 46. Rd7+ {[%emt 0:00:28]} Kc4 {[%emt 0:00:06]} 47. g5 {[%emt 0:01:13]} c1=Q {[%emt 0:00:07]} 48. Kh5 {[%emt 0:00:22]} Qh1+ {[%emt 0:00:19]} 49. Kg6 {[%emt 0:00:09]} Qc6+ {[%emt 0:00:05]} 50. Kh5 {[%emt 0:00:25]} Qxd7 {[%emt 0:00:04]} 51. Kg6 {[%emt 0:01:24]} Rf3 {[%emt 0:00:30]} 52. Kh6 {[%emt 0:00:04]} Qf7 {[%emt 0:01:02]} 53. g6 {[%emt 0:00:05]} Rf6 {[%emt 0:00:13]} 54. Kh5 {[%emt 0:00:24]} Rxg6 {[%emt 0:00:06]} 0-1

[Event "Swiss Championship U14 2022"]
[Site "Biel"]
[Date "2022.07.18"]
[Round "1.8"]
[White "Rappazzo, Johannes"]
[Black "Gade, Niels Severin"]
[Result "1-0"]
[ECO "B90"]
[WhiteElo "1761"]
[BlackElo "1505"]
[Annotator "NA COMBH"]
[PlyCount "165"]
[EventDate "2022.07.18"]
[EventType "swiss"]
[EventCountry "SUI"]
[SourceTitle "playchess.com"]
[Source "ChessBase"]
[SourceQuality "1"]
[TimeControl "5400+30"]

1. e4 {[%emt 0:00:01]} c5 {[%emt 0:00:06]} 2. Nf3 {[%emt 0:00:03]} d6 {[%emt 0:00:09]} 3. d4 {[%emt 0:00:04]} cxd4 {[%emt 0:00:15]} 4. Nxd4 {[%emt 0:00:02]} Nf6 {[%emt 0:00:09]} 5. Nc3 {[%emt 0:00:05]} a6 {[%emt 0:00:07]} 6. Be3 {[%emt 0:00:08]} e5 {[%emt 0:00:05]} 7. Nb3 {[%emt 0:00:04]} Be6 {[%emt 0:00:08]} 8. f3 {[%emt 0:00:05]} Be7 {[%emt 0:00:42]} 9. Qd2 {[%emt 0:00:10]} Qc7 {[%emt 0:00:13]} 10. Be2 {[%emt 0:02:18]} Nbd7 {[%emt 0:00:16]} 11. O-O-O {[%emt 0:00:45]} Rc8 {[%emt 0:00:24]} 12. g4 {[%emt 0:00:54]} Nb6 {[%emt 0:01:23]} 13. g5 {[%emt 0:04:09]} Nfd7 {[%emt 0:01:28]} 14. Kb1 {[%emt 0:01:38]} Nc4 {[%emt 0:00:00]} 15. Bxc4 {[%emt 0:00:53]} Bxc4 {[%emt 0:00:05]} 16. h4 {[%emt 0:04:10]} Be6 {[%emt 0:00:49]} 17. h5 {[%emt 0:04:41]} b5 {[%emt 0:02:15]} 18. Rh2 {[%emt 0:04:05]} Nb6 {[%emt 0:00:36]} 19. Bxb6 {[%emt 0:09:59]} Qxb6 {[%emt 0:00:14]} 20. Nd5 {[%emt 0:00:55]} Bxd5 {[%emt 0:00:26]} 21. exd5 {[%emt 0:00:09]} Rc4 {[%emt 0:04:30]} 22. Rg2 {[%emt 0:20:19]} Rf4 {[%emt 0:01:37]} 23. Qc3 {[%emt 0:06:10]} Kd7 {[%emt 0:04:10]} 24. Qd3 {[%emt 0:05:03]} g6 {[%emt 0:06:40]} 25. Rh1 {[%emt 0:02:04]} Qd8 {[%emt 0:01:45]} 26. Rgh2 {[%emt 0:04:19]} Rf8 {[%emt 0:04:18]} 27. hxg6 {[%emt 0:03:24]} hxg6 {[%emt 0:00:47]} 28. Rh7 {[%emt 0:02:55]} Bxg5 {[%emt 0:00:20]} 29. Qxg6 {[%emt 0:01:23]} Qf6 {[%emt 0:01:05]} 30. Qxf6 {[%emt 0:05:03]} Bxf6 {[%emt 0:00:36]} 31. R1h3 {[%emt 0:03:21]} Bd8 {[%emt 0:01:46]} 32. c3 {[%emt 0:00:37]} Rg8 {[%emt 0:01:55]} 33. Kc2 {[%emt 0:00:53]} Bb6 {[%emt 0:03:07]} 34. Kd3 {[%emt 0:01:59]} Ke7 {[%emt 0:03:00]} 35. Nd2 {[%emt 0:01:09]} b4 {[%emt 0:06:45]} 36. R7h4 {[%emt 0:05:27]} bxc3 {[%emt 0:00:00]} 37. bxc3 {[%emt 0:00:08]} Rxh4 {[%emt 0:00:00]} 38. Rxh4 {[%emt 0:00:03]} Rc8 {[%emt 0:03:02]} 39. Ra4 {[%emt 0:02:12]} a5 {[%emt 0:00:00]} 40. Nc4 {[%emt 0:00:37]} Bd8 {[%emt 0:00:00]} 41. Nxa5 {[%emt 0:01:38]} Kf6 {[%emt 0:00:00]} 42. Nc6 {[%emt 0:00:00]} Bb6 {[%emt 0:00:00]} 43. Rh4 {[%emt 0:00:00]} Bc5 {[%emt 0:00:00]} 44. a4 {[%emt 0:03:43]} Rg8 {[%emt 0:02:32]} 45. a5 {[%emt 0:03:11]} Rg3 {[%emt 0:02:33]} 46. Ke2 {[%emt 0:00:10]} Rg2+ {[%emt 0:00:08]} 47. Kd3 {[%emt 0:00:05]} Rg3 {[%emt 0:00:13]} 48. a6 {[%emt 0:02:13]} Rxf3+ {[%emt 0:00:19]} 49. Kc2 {[%emt 0:00:07]} Rf2+ {[%emt 0:00:54]} 50. Kb3 {[%emt 0:00:44]} Rf1 {[%emt 0:00:26]} 51. a7 {[%emt 0:00:46]} Ra1 {[%emt 0:02:58]} 52. Ra4 {[%emt 0:00:03]} Rxa4 {[%emt 0:00:31]} 53. Kxa4 {[%emt 0:00:03]} Bxa7 {[%emt 0:00:07]} 54. Nxa7 {[%emt 0:00:03]} e4 {[%emt 0:00:53]} 55. Kb3 {[%emt 0:00:38]} Ke5 {[%emt 0:00:21]} 56. Kc4 {[%emt 0:02:40]} e3 {[%emt 0:01:42]} 57. Kd3 {[%emt 0:00:00]} Kxd5 {[%emt 0:00:25]} 58. Kxe3 {[%emt 0:00:00]} Kc4 {[%emt 0:00:12]} 59. Kd2 {[%emt 0:00:21]} f5 {[%emt 0:00:46]} 60. Nc6 {[%emt 0:01:07]} f4 {[%emt 0:00:56]} 61. Nd4 {[%emt 0:00:59]} d5 {[%emt 0:00:39]} 62. Kc2 {[%emt 0:00:59]} Kc5 {[%emt 0:00:18]} 63. Kd3 {[%emt 0:00:00]} Kd6 {[%emt 0:01:59]} 64. Ke2 {[%emt 0:00:00]} Kc5 {[%emt 0:02:28]} 65. Kd2 {[%emt 0:02:05]} Kc4 {[%emt 0:01:17]} 66. Kc2 {[%emt 0:00:00]} Kc5 {[%emt 0:00:13]} 67. Kd3 {[%emt 0:00:32]} Kd6 {[%emt 0:00:20]} 68. Nf3 {[%emt 0:01:00]} Kc5 {[%emt 0:00:32]} 69. Ne5 {[%emt 0:00:46]} Kd6 {[%emt 0:00:56]} 70. Kd4 {[%emt 0:00:00]} Ke6 {[%emt 0:00:34]} 71. Ng4 {[%emt 0:00:00]} Kf5 {[%emt 0:01:00]} 72. Nf2 {[%emt 0:00:00]} Ke6 {[%emt 0:00:39]} 73. Nh3 {[%emt 0:02:53]} f3 {[%emt 0:03:13]} 74. Nf4+ {[%emt 0:01:46]} Kf5 {[%emt 0:01:52]} 75. Nxd5 {[%emt 0:00:57]} f2 {[%emt 0:00:10]} 76. Ne3+ {[%emt 0:01:34]} Ke6 {[%emt 0:03:01]} 77. c4 {[%emt 0:00:28]} Kd6 {[%emt 0:00:16]} 78. c5+ {[%emt 0:00:31]} Kc7 {[%emt 0:00:18]} 79. Kd5 {[%emt 0:00:00]} Kd7 {[%emt 0:00:36]} 80. c6+ {[%emt 0:00:00]} Kc7 {[%emt 0:00:05]} 81. Kc5 {[%emt 0:00:42]} Kc8 {[%emt 0:00:34]} 82. Kd6 {[%emt 0:00:18]} Kd8 {[%emt 0:00:27]} 83. Nf1 {[%emt 0:00:08]} 1-0

[Event "Swiss Championship U14 2022"]
[Site "Biel"]
[Date "2022.07.18"]
[Round "2.1"]
[White "Mattenberger, Matthias"]
[Black "Scherler, Julius"]
[Result "1-0"]
[ECO "D32"]
[WhiteElo "2005"]
[BlackElo "1971"]
[Annotator "TA"]
[PlyCount "119"]
[EventDate "2022.07.18"]
[EventType "swiss"]
[EventCountry "SUI"]
[SourceTitle "playchess.com"]
[Source "ChessBase"]
[SourceQuality "1"]
[TimeControl "5400+30"]

{[%evp 25,118,29,47,54,54,32,25,38,56,15,31,55,76,64,89,95,112,77,107,108,146,146,183,171,177,192,202,177,159,163,553,542,581,604,595,587,1065,875,1049,1104,1063,428,1097,1056,968,942,965,1051,997,857,1890,1600,2315,2222,12835,2630,12843,12843,29978,12844,29978,29978,29978,29979,29981,29981,29982,29979,29981,12848,29984,29985,29986,29987,29987,29988,29989,29990,29991,29991,29991,29992,29992,29992,29993,29993,29993,29994,29996,29997,29997,29998,29998,29999,29999]} 1. d4 {[%emt 0:00:11]} d5 {[%emt 0:00:40]} 2. c4 {[%emt 0:00:10]} e6 {[%emt 0:00:09]} 3. Nc3 {[%emt 0:00:04]} c5 {[%emt 0:00:41]} 4. cxd5 {[%emt 0:00:09]} cxd4 {[%emt 0:00:07]} 5. Qa4+ {[%emt 0:00:04]} Bd7 {[%emt 0:00:06]} 6. Qxd4 {[%emt 0:00:05]} exd5 {[%emt 0:00:12]} 7. Qxd5 {[%emt 0:02:30]} Nf6 {[%emt 0:00:15]} 8. Qd1 {[%emt 0:04:24]} Bc5 {[%emt 0:00:58]} 9. e3 {[%emt 0:01:27]} O-O {[%emt 0:03:51]} 10. Nf3 {[%emt 0:02:19]} Qe7 {[%emt 0:02:55]} 11. a3 {[%emt 0:01:10]} Rd8 {[%emt 0:01:42]} 12. Be2 {[%emt 0:03:53]} Nc6 {[%emt 0:02:52]} 13. O-O {[%emt 0:01:52]} a6 {[%emt 0:04:15]} 14. Qc2 {[%emt 0:06:13] [#] D32: Tarrasch Defence: Sidelines and lines without g3.} Ne5 $146 {[%emt 0:02:51]} ({Predecessor:} 14... b5 15. Ng5 g6 16. Nge4 Nxe4 17. Qxe4 Qxe4 18. Nxe4 Be7 19. Nc3 Be6 20. Bf3 Rac8 21. Bxc6 Rxc6 {½-½ (29) Mai,I (2075)-Von der Weth,C (1910) Nordhausen 1986}) 15. Nxe5 {[%emt 0:19:33]} Qxe5 {[%emt 0:01:20]} 16. Bf3 {[%emt 0:01:05] White has an edge.} Bg4 {[%emt 0:40:51] [#] Strongly threatening ...Bd6.} 17. Qe2 {[%emt 0:02:23]} Bd6 {[%emt 0:08:44][%csl Gd6][%cal Re5h2]} 18. g3 {[%emt 0:00:34]} Qh5 {[%emt 0:00:39]} 19. Bxg4 {[%emt 0:02:39] Black is on the road to losing.} Nxg4 {[%emt 0:00:25][%csl Gg4][%cal Rh5h2]} 20. f3 {[%emt 0:01:00]} Ne5 {[%emt 0:01:30]} 21. Kg2 {[%emt 0:03:42]} Bc5 {[%emt 0:02:10]} 22. e4 {[%emt 0:04:02]} Nd3 {[%emt 0:13:55]} (22... Rd3 $2 23. Bf4 Rdd8 24. Nd5 $16) 23. Nd5 {[%emt 0:01:36][%cal Bc3d5,Bd5f4,Bf4d3][%mdl 32]} Ne5 {[%emt 0:04:47]} 24. Rd1 {[%emt 0:07:57]} Rac8 {[%emt 0:03:19]} 25. Bf4 {[%emt 0:02:30] And now g4 would win.} Ng6 {[%emt 0:00:36]} 26. Rac1 {[%emt 0:02:22] aiming for Bc7. Active counter play!} Nxf4+ {[%emt 0:00:43]} 27. Nxf4 {[%emt 0:00:28]} Qe5 {[%emt 0:00:20]} (27... Qg5 28. Nd5 Bd6) 28. Nd3 $18 {[%emt 0:01:50]} Qe7 {[%emt 0:00:29]} 29. Nxc5 {[%emt 0:00:06]} ({Not} 29. Rxc5 Rxc5 30. Nxc5 Rxd1 $16) 29... Rxd1 {[%emt 0:00:10]} 30. Qxd1 {[%emt 0:00:07]} ({Weaker is} 30. Rxd1 Rxc5 31. Qd3 g6 $16) 30... Rxc5 {[%emt 0:00:12]} 31. Rxc5 {[%emt 0:00:21]} Qxc5 {[%emt 0:00:02][%mdl 4096] Endgame KQ-KQ} 32. Qd8+ {[%emt 0:00:07]} Qf8 {[%emt 0:00:04] [#]} 33. Qxf8+ $1 {[%emt 0:00:11]} Kxf8 {[%emt 0:00:02] KP-KP} 34. Kf2 {[%emt 0:00:09]} Ke7 {[%emt 0:00:05]} 35. Ke3 {[%emt 0:00:04]} Ke6 {[%emt 0:00:14]} 36. Kd4 {[%emt 0:00:09]} Kd6 {[%emt 0:00:05]} 37. f4 {[%emt 0:00:15]} f6 {[%emt 0:00:04]} 38. b4 {[%emt 0:00:43]} b6 {[%emt 0:00:09]} 39. g4 {[%emt 0:00:20]} g6 {[%emt 0:00:08]} 40. h4 {[%emt 0:00:40]} (40. g5 $142 Ke6 41. e5) 40... h5 {[%emt 0:00:11]} 41. gxh5 {[%emt 0:00:33] White wants to mate with h6.} gxh5 {[%emt 0:00:02]} 42. e5+ {[%emt 0:00:17]} (42. a4 $142 Ke6 43. a5 bxa5 44. bxa5 Kd6 45. f5 Kc6 46. e5 Kd7 47. exf6) 42... Ke6 {[%emt 0:00:34]} 43. exf6 {[%emt 0:00:30]} Kxf6 {[%emt 0:00:02]} 44. Ke4 {[%emt 0:00:06]} Ke6 {[%emt 0:00:07]} 45. f5+ {[%emt 0:00:03]} Kf6 {[%emt 0:00:12]} 46. Kf4 {[%emt 0:00:02]} Kf7 {[%emt 0:00:06]} 47. Kg5 {[%emt 0:00:04] White threatens f6 and mate.} a5 {[%emt 0:00:05]} 48. b5 {[%emt 0:00:19] White mates.} a4 {[%emt 0:00:06]} 49. f6 {[%emt 0:00:14]} Kf8 {[%emt 0:00:07]} 50. Kxh5 {[%emt 0:00:07]} Kf7 {[%emt 0:00:25]} 51. Kg5 {[%emt 0:00:05]} Kf8 {[%emt 0:00:04]} 52. Kg6 {[%emt 0:00:06]} Kg8 {[%emt 0:00:04]} 53. f7+ {[%emt 0:00:05]} Kf8 {[%emt 0:00:06]} 54. h5 {[%emt 0:00:03]} Ke7 {[%emt 0:00:04]} 55. Kg7 {[%emt 0:00:03]} Kd7 {[%emt 0:00:07]} 56. f8=Q {[%emt 0:00:05]} Kc7 {[%emt 0:00:07]} 57. Qe7+ {[%emt 0:00:08]} Kb8 {[%emt 0:00:07]} 58. h6 {[%emt 0:00:10]} Ka8 {[%emt 0:00:04]} 59. h7 {[%emt 0:00:04][%cal Rh7h8]} Kb8 {[%emt 0:00:04]} 60. h8=Q# {[%emt 0:00:09] Weighted Error Value: White=0.04 (flawless) /Black=0.71} 1-0

[Event "Swiss Championship U14 2022"]
[Site "Biel"]
[Date "2022.07.18"]
[Round "2.2"]
[White "Gut, Lionel"]
[Black "Arsenie, Cristian Marc"]
[Result "0-1"]
[ECO "E36"]
[WhiteElo "1957"]
[BlackElo "2001"]
[Annotator "TA"]
[PlyCount "78"]
[EventDate "2022.07.18"]
[EventType "swiss"]
[EventCountry "SUI"]
[SourceTitle "playchess.com"]
[Source "ChessBase"]
[SourceQuality "1"]
[TimeControl "5400+30"]

{[%evp 12,78,8,8,0,0,13,9,-13,-46,-6,-7,-3,-81,-79,-81,-85,-153,-153,-122,-127,-163,-128,-132,-122,-114,-85,-92,-85,-114,-99,-141,-125,-128,-125,-100,-100,-91,-91,-145,-136,-160,-164,-169,-171,-246,-246,-427,-413,-664,-591,-664,-656,-636,-613,-731,-653,-791,-779,-839,-808,-850,-830,-6141,-6640,-5243,-4978,-1529,-1366]} 1. d4 {[%emt 0:00:18]} Nf6 {[%emt 0:00:00]} 2. c4 {[%emt 0:00:14]} e6 {[%emt 0:00:01]} 3. Nc3 {[%emt 0:00:08]} Bb4 {[%emt 0:00:01]} 4. Qc2 {[%emt 0:00:09]} d5 {[%emt 0:00:01]} 5. a3 {[%emt 0:00:09]} Bxc3+ {[%emt 0:00:03]} 6. Qxc3 {[%emt 0:00:06]} O-O {[%emt 0:00:36]} 7. Bg5 {[%emt 0:00:17]} c5 {[%emt 0:00:14] E36: Nimzo-Indian: Classical: 4...d5 5 a3.} 8. dxc5 {[%emt 0:01:26] And now Bxf6 would win.} d4 {[%emt 0:00:09]} 9. Qc2 {[%emt 0:00:09] 9.Qf3 is the modern continuation.} h6 {[%emt 0:00:20] [#] The position is equal.} 10. Bf4 $146 {[%emt 0:06:02]} ({Predecessor:} 10. Bh4 e5 11. e3 Qe7 12. Be2 Re8 13. Rd1 a5 14. exd4 exd4 15. Rxd4 g5 16. Bg3 Qxc5 {½-½ (32) Johansen,A (2386)-Fremmegaard,J (2372) ICCF email 2021}) 10... Nc6 {[%emt 0:05:00][%mdl 1024] Black has compensation.} (10... e5 $5 11. Bxe5 Re8 12. Bxb8 Rxb8 $11) 11. Nf3 {[%emt 0:11:57] Inhibits e5.} Re8 {[%emt 0:00:59]} 12. e4 {[%emt 0:08:32]} (12. Ne5 $11 {remains equal.}) 12... e5 $36 {[%emt 0:03:31][%mdl 2048] Black is really pushing.} 13. Bd2 {[%emt 0:04:10]} a5 {[%emt 0:01:29][%cal Ba7a5,Ba5a4][%mdl 32]} 14. Be2 {[%emt 0:01:07]} (14. Rb1 $142) 14... Nd7 {[%emt 0:02:39]} 15. O-O {[%emt 0:06:24]} Nxc5 {[%emt 0:00:23] Hoping for ...d3.} 16. Bd3 {[%emt 0:02:16]} a4 {[%emt 0:11:27]} 17. Bb4 {[%emt 0:02:43]} Nxd3 {[%emt 0:07:45]} 18. Qxd3 {[%emt 0:00:07]} f5 {[%emt 0:00:09]} 19. Rfe1 {[%emt 0:02:59]} f4 {[%emt 0:00:49]} 20. Kh1 {[%emt 0:06:59]} Qb6 {[%emt 0:06:07]} 21. c5 {[%emt 0:04:56]} Nxb4 {[%emt 0:02:37]} 22. Qc4+ {[%emt 0:00:06]} Be6 {[%emt 0:02:41][%cal Bc8e6,Be6b3,Bb3c2][%mdl 32]} 23. Qxb4 {[%emt 0:00:08]} Qxb4 {[%emt 0:00:05]} 24. axb4 {[%emt 0:00:04]} Bb3 {[%emt 0:00:47] ...d3 is the strong threat.} 25. Nd2 {[%emt 0:06:51] [#]} (25. Rec1 $142) 25... Bc2 $1 {[%emt 0:00:39]} 26. Ra3 {[%emt 0:00:36]} d3 {[%emt 0:08:08]} 27. Rea1 {[%emt 0:02:25]} Rad8 {[%emt 0:02:23]} 28. Rc3 {[%emt 0:05:19] [#]} (28. f3 {was called for.}) 28... Rd4 $1 $19 {[%emt 0:02:24]} 29. Rc4 $2 {[%emt 0:00:57]} (29. b5 {is a better defense.}) 29... Red8 {[%emt 0:02:58] White must now prevent ...Rxc4.} 30. b5 {[%emt 0:07:52]} (30. Rxd4 $142 Rxd4 31. b5) 30... Rxc4 {[%emt 0:03:35] Black is clearly winning.} 31. Nxc4 {[%emt 0:00:01]} d2 {[%emt 0:00:24]} 32. Nxd2 {[%emt 0:00:02]} Rxd2 {[%emt 0:00:06][%mdl 4096] Endgame KRB-KR} 33. h4 {[%emt 0:00:45]} Rd4 {[%emt 0:03:18]} 34. Ra3 {[%emt 0:00:57]} Rc4 {[%emt 0:00:49]} 35. c6 {[%emt 0:01:02]} bxc6 {[%emt 0:00:25]} 36. bxc6 {[%emt 0:00:01]} Rxc6 {[%emt 0:00:29]} 37. f3 {[%emt 0:00:09]} Bb3 {[%emt 0:00:15] ( -> ...Rc1+)} 38. Ra1 {[%emt 0:00:12] Inhibits Rc1+.} Rc2 {[%emt 0:00:06]} 39. Rb1 {[%emt 0:00:05]} Ba2 {[%emt 0:00:09] Weighted Error Value: White=0.66/Black=0.08 (flawless)} 0-1

[Event "Swiss Championship U14 2022"]
[Site "Biel"]
[Date "2022.07.18"]
[Round "2.4"]
[White "Breyer, Philippe"]
[Black "Gut, Raphael"]
[Result "1/2-1/2"]
[ECO "B81"]
[WhiteElo "1743"]
[BlackElo "1898"]
[Annotator "NA RC COMBH"]
[PlyCount "93"]
[EventDate "2022.07.18"]
[EventType "swiss"]
[EventCountry "SUI"]
[SourceTitle "playchess.com"]
[Source "ChessBase"]
[SourceQuality "1"]
[TimeControl "5400+30"]

1. e4 {[%emt 0:00:12]} c5 {[%emt 0:00:13]} 2. Nf3 {[%emt 0:00:00]} d6 {[%emt 0:00:06]} 3. d4 {[%emt 0:00:00]} cxd4 {[%emt 0:00:03]} 4. Nxd4 {[%emt 0:00:11]} Nf6 {[%emt 0:00:04]} 5. Nc3 {[%emt 0:00:10]} a6 {[%emt 0:00:06]} 6. h3 {[%emt 0:00:20]} e6 {[%emt 0:07:47]} 7. g4 {[%emt 0:02:54]} h6 {[%emt 0:02:15]} 8. Bg2 {[%emt 0:00:54]} Be7 {[%emt 0:01:25]} 9. O-O {[%emt 0:04:07]} Bd7 {[%emt 0:03:08]} 10. Be3 {[%emt 0:04:48]} Qc7 {[%emt 0:07:46]} 11. Qd2 {[%emt 0:07:21]} Nc6 {[%emt 0:05:26]} 12. f4 {[%emt 0:09:04]} Rc8 {[%emt 0:01:46]} 13. Qf2 {[%emt 0:07:41]} Na5 {[%emt 0:17:43]} 14. g5 {[%emt 0:01:01]} Nh5 {[%emt 0:00:00]} 15. g6 {[%emt 0:17:19]} Nc4 {[%emt 0:13:21]} 16. gxf7+ {[%emt 0:00:00]} Kxf7 {[%emt 0:05:01]} 17. f5 {[%emt 0:04:41]} e5 {[%emt 0:04:19]} 18. Ne6 {[%emt 0:04:29]} Qc6 {[%emt 0:09:49]} 19. Nd5 {[%emt 0:02:15]} Nxe3 {[%emt 0:04:09]} 20. Nxe3 {[%emt 0:00:00]} Nf6 {[%emt 0:16:05]} 21. Bf3 {[%emt 0:06:40]} Qb6 {[%emt 0:00:00]} 22. Rae1 {[%emt 0:14:13]} Rhg8 {[%emt 0:03:11]} 23. Qe2 {[%emt 0:01:22]} g6 {[%emt 0:03:27]} 24. Kh2 {[%emt 0:00:20]} Bxe6 {[%emt 0:00:00]} 25. fxe6+ {[%emt 0:01:43]} Kg7 {[%emt 0:00:00]} 26. Rg1 {[%emt 0:02:50]} Kh7 {[%emt 0:00:00]} 27. c3 {[%emt 0:00:26]} Rc7 {[%emt 0:00:26]} 28. Nd5 {[%emt 0:00:49]} Nxd5 {[%emt 0:00:09]} 29. exd5 {[%emt 0:00:31]} Bg5 {[%emt 0:01:35]} 30. Be4 {[%emt 0:01:43]} Rf8 {[%emt 0:01:47]} 31. Ref1 {[%emt 0:01:13]} Rxf1 {[%emt 0:00:00]} 32. Rxf1 {[%emt 0:00:16]} Kg7 {[%emt 0:01:26]} 33. Qg2 {[%emt 0:00:52]} Qe3 {[%emt 0:01:13]} 34. Kh1 {[%emt 0:00:29]} Rc4 {[%emt 0:01:53]} 35. e7 {[%emt 0:00:54]} Rc8 {[%emt 0:00:00]} 36. h4 {[%emt 0:02:48]} Re8 {[%emt 0:00:00]} 37. hxg5 {[%emt 0:00:58]} hxg5 {[%emt 0:01:04]} 38. Qf3 {[%emt 0:00:37]} Qf4 {[%emt 0:00:48]} 39. Qxf4 {[%emt 0:01:32]} exf4 {[%emt 0:00:26]} 40. Kg2 {[%emt 0:00:30]} Rxe7 {[%emt 0:00:33]} 41. Bf3 {[%emt 0:00:20]} Kf6 {[%emt 0:00:23]} 42. Bg4 {[%emt 0:00:19]} Re3 {[%emt 0:01:30]} 43. Rf3 {[%emt 0:00:13]} Re2+ {[%emt 0:00:00]} 44. Rf2 {[%emt 0:01:24]} Re5 {[%emt 0:00:38]} 45. Be6 {[%emt 0:01:09]} b6 {[%emt 0:00:21]} 46. Kf1 {[%emt 0:00:51]} Re3 {[%emt 0:01:15]} 47. Bg4 {[%emt 0:00:09]} 1/2-1/2